bitfinex/quotes_BTCUSD_20240731
["timestamp","ask_amount","ask_price","bid_price","bid_amount"]
[1722451750112,0.07077,66615.0,66614.0,0.92314372]
[1722451750711,0.00847,66615.0,66614.0,0.92314372]
[1722451752018,0.00847,66615.0,66614.0,1.22338072]
[1722451752508,0.00847,66615.0,66614.0,0.92314372]
[1722451752809,0.00847,66615.0,66614.0,1.22338072]
[1722451753044,0.00847,66615.0,66614.0,0.92314372]
[1722451753254,0.00847,66615.0,66614.0,1.22338072]
[1722451753460,0.00847,66615.0,66614.0,1.45918072]
[1722451753686,0.00847,66615.0,66614.0,1.77141772]
[1722451753902,0.00847,66615.0,66614.0,1.75941772]
[1722451754363,0.00847,66615.0,66614.0,0.42266972]
[1722451754572,0.00847,66615.0,66614.0,1.02314372]
[1722451754788,0.00847,66615.0,66614.0,1.32338072]
[1722451756219,0.00847,66615.0,66614.0,1.62361772]
[1722451756429,0.00847,66615.0,66614.0,1.69901772]
[1722451756629,0.00847,66615.0,66614.0,1.76901772]
[1722451756840,0.00847,66615.0,66614.0,1.75901772]
[1722451759771,0.0005,66629.0,66628.0,1.504283]
[1722451759986,0.00084,66632.0,66631.0,0.01]
[1722451760197,0.00847,66651.0,66639.0,0.01]
[1722451760397,0.00847,66651.0,66648.0,0.75021]
[1722451760603,0.00847,66651.0,66648.0,1.160294]
[1722451760815,0.00847,66651.0,66648.0,1.48542323]
[1722451761019,0.00847,66651.0,66648.0,1.50842323]
[1722451761636,0.00847,66651.0,66648.0,1.967241]
[1722451762472,0.0015,66649.0,66648.0,1.981241]
[1722451762685,0.0015,66649.0,66648.0,1.967241]
[1722451762890,0.0005,66649.0,66648.0,1.999241]
[1722451763013,0.0005,66649.0,66648.0,2.099241]
[1722451763214,0.0005,66649.0,66648.0,2.258041]
[1722451763215,0.0015,66649.0,66648.0,2.258041]
[1722451763474,0.0015,66649.0,66648.0,2.758325]
[1722451763976,0.00846,66661.0,66660.0,1.350135]
[1722451764174,0.00846,66661.0,66660.0,1.93481595]
[1722451764357,0.00846,66661.0,66660.0,1.63478595]
[1722451766229,0.00946,66661.0,66660.0,1.67178595]
[1722451766430,0.00946,66661.0,66660.0,1.68067207]
[1722451766578,0.01046,66661.0,66660.0,1.69467207]
[1722451767416,0.01046,66661.0,66660.0,2.17320207]
[1722451767726,0.01046,66661.0,66660.0,2.17120207]
[1722451767905,0.00846,66661.0,66660.0,2.14320207]
[1722451768105,0.00846,66661.0,66660.0,2.13320207]
[1722451768406,0.00846,66661.0,66660.0,2.14320207]
[1722451769305,0.00846,66661.0,66660.0,1.80807284]
[1722451769510,0.00946,66661.0,66660.0,1.54578877]
[1722451769708,0.00846,66661.0,66660.0,1.53178877]
[1722451769911,0.00846,66661.0,66660.0,1.83181877]
[1722451770250,0.00846,66661.0,66660.0,1.78807284]
[1722451770449,0.00846,66661.0,66660.0,1.33154284]
[1722451770654,0.00846,66661.0,66660.0,1.37684364]
[1722451770801,0.00846,66661.0,66660.0,1.33154284]
[1722451771007,0.00946,66661.0,66660.0,1.34554284]
[1722451771231,0.00946,66661.0,66660.0,1.33154284]
[1722451771232,0.00846,66661.0,66660.0,1.33154284]
[1722451771632,0.00946,66661.0,66660.0,1.34554284]
[1722451772014,0.14706,66661.0,66660.0,0.71359672]
[1722451772587,0.14706,66661.0,66660.0,1.01362672]
[1722451772721,0.14706,66661.0,66660.0,0.71359672]
[1722451773087,0.14706,66661.0,66660.0,0.41356672]
[1722451773301,0.14706,66661.0,66660.0,0.31356672]
[1722451773433,0.597097,66661.0,66660.0,0.014]
[1722451773633,0.897122,66661.0,66660.0,0.014]
[1722451773861,0.297072,66661.0,66660.0,0.014]
[1722451774058,0.150015,66660.0,66656.0,0.150023]
[1722451774336,0.14706,66661.0,66660.0,0.014]
[1722451774485,0.297072,66661.0,66660.0,0.014]
[1722451774681,0.14706,66661.0,66657.0,0.14955172]
[1722451774887,0.297073,66661.0,66658.0,0.023]
[1722451775083,0.598098,66661.0,66660.0,0.012]
[1722451775313,0.898123,66661.0,66660.0,0.035]
[1722451775509,1.198148,66661.0,66660.0,0.035]
[1722451775664,0.896123,66661.0,66660.0,0.023]
[1722451776441,0.896123,66661.0,66637.0,0.33512923]
[1722451776442,0.0605,66647.0,66637.0,0.33512923]
[1722451776650,0.0605,66647.0,66646.0,0.150046]
[1722451776909,0.0605,66647.0,66646.0,0.14955172]
[1722451777302,0.0815,66643.0,66630.0,0.33512923]
[1722451777511,0.0815,66643.0,66631.0,0.14955172]
[1722451777655,0.0815,66643.0,66639.0,0.300122]
[1722451777869,0.0815,66643.0,66640.0,0.14955172]
[1722451778069,0.0015542,66642.0,66640.0,0.14955172]
[1722451778650,0.0815,66643.0,66641.0,0.150057]
[1722451778822,0.0815,66643.0,66642.0,0.14955172]
[1722451779032,0.0825,66643.0,66642.0,0.32260672]
[1722451780256,0.0605,66647.0,66646.0,0.150046]
[1722451780447,0.210544,66647.0,66646.0,0.023]
[1722451781036,1.187108,66647.0,66646.0,0.023]
[1722451781342,0.376415,66641.0,66614.0,0.376434]
[1722451781512,0.0649,66637.0,66636.0,0.150069]
[1722451781870,0.0649,66637.0,66636.0,0.29962072]
[1722451782098,0.0649,66637.0,66633.0,0.150074]
[1722451782247,0.0649,66637.0,66635.0,0.150069]
[1722451782447,0.0649,66637.0,66636.0,0.150069]
[1722451782653,0.0763,66641.0,66640.0,0.15006]
[1722451782975,0.0625,66643.0,66642.0,0.450166]
[1722451783118,0.0625,66643.0,66642.0,0.62271772]
[1722451783598,0.0625,66643.0,66642.0,0.92282872]
[1722451784189,0.001,66643.0,66642.0,0.93482872]
[1722451784344,0.001,66643.0,66642.0,0.18455172]
[1722451784545,0.001,66643.0,66642.0,0.035]
[1722451784771,0.151053,66643.0,66642.0,0.035]
[1722451784973,0.001,66643.0,66642.0,0.035]
[1722451785136,0.0613,66643.0,66642.0,0.035]
[1722451785334,0.211353,66643.0,66642.0,0.035]
[1722451785579,0.511459,66643.0,66642.0,0.035]
[1722451785780,0.811565,66643.0,66642.0,0.035]
[1722451786126,0.0613,66643.0,66642.0,0.035]
[1722451786508,0.211353,66643.0,66642.0,0.035]
[1722451786841,0.511459,66643.0,66642.0,0.035]
[1722451787251,0.811565,66643.0,66642.0,0.035]
[1722451788681,0.0613,66643.0,66642.0,0.035]
[1722451788837,0.211353,66643.0,66642.0,0.035]
[1722451789043,0.511459,66643.0,66642.0,0.035]
[1722451789490,0.0613,66643.0,66642.0,0.035]
[1722451789691,0.211353,66643.0,66642.0,0.035]
[1722451789891,0.511459,66643.0,66642.0,0.035]
[1722451790659,0.211353,66643.0,66642.0,0.035]
[1722451790915,0.511459,66643.0,66642.0,0.035]
[1722451791085,0.811565,66643.0,66642.0,0.035]
[1722451791296,0.0613,66643.0,66642.0,0.035]
[1722451792092,0.001,66643.0,66642.0,0.93482872]
[1722451793609,0.001,66643.0,66642.0,1.23493972]
[1722451794331,0.001,66643.0,66642.0,0.93482872]
[1722451795373,0.001,66643.0,66642.0,0.94074172]
[1722451797290,0.001,66643.0,66642.0,1.24085272]
[1722451798400,0.00083,66651.0,66650.0,0.450112]
[1722451798517,0.00083,66651.0,66650.0,0.473112]
[1722451798720,0.00083,66651.0,66650.0,0.023]
[1722451798921,0.00083,66651.0,66650.0,0.150037]
[1722451799120,0.00083,66651.0,66650.0,0.173037]
[1722451799367,0.150865,66651.0,66650.0,0.023]
[1722451799578,0.00083,66651.0,66645.0,0.150047]
[1722451799779,0.150865,66651.0,66647.0,0.150043]
[1722451800006,0.00083,66651.0,66647.0,0.300088]
[1722451800171,0.00083,66651.0,66648.0,0.023]
[1722451800370,0.00083,66651.0,66649.0,0.150039]
[1722451800589,0.00083,66651.0,66650.0,0.173037]
[1722451800912,0.00083,66651.0,66650.0,0.773187]
[1722451801086,0.00083,66651.0,66650.0,1.073262]
[1722451801822,0.00083,66651.0,66650.0,1.85801795]
[1722451802273,0.00083,66651.0,66650.0,1.55794295]
[1722451803078,0.00083,66651.0,66650.0,1.56694295]
[1722451803478,0.00083,66651.0,66650.0,1.55794295]
[1722451803715,0.00083,66651.0,66650.0,1.57594295]
[1722451804276,0.00083,66651.0,66650.0,1.57194295]
[1722451804681,0.00183,66651.0,66650.0,1.58394295]
[1722451804887,0.00183,66651.0,66650.0,1.28386795]
[1722451805152,0.00183,66651.0,66650.0,0.94873872]
[1722451805353,0.00183,66651.0,66650.0,0.776187]
[1722451805705,0.00183,66651.0,66650.0,0.176037]
[1722451805907,0.14393,66651.0,66650.0,0.476112]
[1722451806065,0.14393,66651.0,66650.0,0.776187]
[1722451806272,0.14393,66651.0,66650.0,0.176037]
[1722451806868,0.00183,66651.0,66650.0,0.62566372]
[1722451807164,0.00183,66651.0,66650.0,0.19855172]
[1722451807372,0.451935,66651.0,66650.0,0.049]
[1722451807556,0.00183,66651.0,66650.0,0.049]
[1722451808291,0.00183,66651.0,66650.0,0.487112]
[1722451808534,0.00183,66651.0,66650.0,0.787187]
[1722451808535,0.00083,66651.0,66650.0,0.787187]
[1722451808734,0.00183,66651.0,66650.0,0.787187]
[1722451809141,0.00183,66651.0,66650.0,1.23681372]
[1722451809338,0.00183,66651.0,66650.0,1.22281372]
[1722451809541,0.00183,66651.0,66650.0,1.52288872]
[1722451809715,0.00183,66651.0,66650.0,1.82996372]
[1722451809962,0.00083,66651.0,66650.0,1.92296372]
[1722451810327,0.00183,66651.0,66650.0,1.96196372]
[1722451810457,0.00183,66651.0,66650.0,2.03956372]
[1722451810644,0.00083,66651.0,66650.0,2.03256372]
[1722451810882,0.00083,66651.0,66650.0,2.04156372]
[1722451811258,0.00183,66651.0,66650.0,1.71148872]
[1722451811381,0.00183,66651.0,66650.0,2.02156372]
[1722451811609,0.00083,66651.0,66650.0,2.01056372]
[1722451811815,0.00183,66651.0,66650.0,2.02456372]
[1722451812083,0.00846,66661.0,66650.0,2.34663872]
[1722451812267,0.00846,66661.0,66660.0,1.412635]
[1722451812473,0.00846,66661.0,66660.0,1.99731595]
[1722451812679,0.00846,66661.0,66660.0,1.95781595]
[1722451816492,0.00846,66661.0,66660.0,2.25784595]
[1722451816843,0.00846,66661.0,66660.0,2.28484595]
[1722451816999,0.00946,66661.0,66660.0,2.28484595]
[1722451817200,0.00946,66661.0,66660.0,2.28284595]
[1722451817432,0.00946,66661.0,66660.0,2.36504595]
[1722451817604,0.00946,66661.0,66660.0,2.04391672]
[1722451817805,0.00946,66661.0,66660.0,2.02991672]
[1722451818010,0.00946,66661.0,66660.0,2.41484672]
[1722451818647,0.00846,66661.0,66660.0,2.40184672]
[1722451819316,0.00946,66661.0,66660.0,2.41584672]
[1722451819435,0.00946,66661.0,66660.0,2.08381672]
[1722451819636,0.00946,66661.0,66660.0,2.09781672]
[1722451819840,0.00846,66661.0,66660.0,1.78378672]
[1722451820041,0.00846,66661.0,66660.0,1.65068672]
[1722451820042,0.00946,66661.0,66660.0,1.65068672]
[1722451820464,0.00946,66661.0,66660.0,1.63668672]
[1722451820670,0.00846,66661.0,66660.0,1.62268672]
[1722451820839,0.00846,66661.0,66660.0,1.63668672]
[1722451821045,0.00846,66661.0,66660.0,1.62268672]
[1722451821273,0.00847,66663.0,66660.0,1.62268672]
[1722451821274,0.00847,66663.0,66662.0,1.060073]
[1722451821480,0.00847,66663.0,66662.0,1.95777495]
[1722451822132,0.00847,66666.0,66665.0,1.680038]
[1722451822340,0.0005,66669.0,66668.0,0.781985]
[1722451822665,0.00847,66674.0,66673.0,1.274298]
[1722451822840,0.00847,66674.0,66673.0,2.15894995]
[1722451823445,0.00847,66674.0,66673.0,2.45892095]
[1722451824208,0.00847,66674.0,66673.0,2.49592095]
[1722451824543,0.00847,66674.0,66673.0,2.51592095]
[1722451824744,0.00847,66674.0,66673.0,2.49592095]
[1722451825123,0.00847,66674.0,66673.0,2.20994995]
[1722451825871,0.00847,66674.0,66673.0,2.52992095]
[1722451826133,0.00847,66674.0,66673.0,2.50992095]
[1722451826254,0.00847,66674.0,66673.0,2.51881181]
[1722451826650,0.00847,66674.0,66673.0,2.21884081]
[1722451827272,0.00847,66674.0,66673.0,2.53881181]
[1722451827443,0.00847,66674.0,66673.0,2.51881181]
[1722451827646,0.00847,66674.0,66673.0,2.21884081]
[1722451827890,0.00847,66674.0,66673.0,1.87371158]
[1722451828090,0.00847,66674.0,66673.0,1.65931158]
[1722451831390,0.00847,66674.0,66673.0,1.67131158]
[1722451831828,0.00847,66674.0,66673.0,1.67915592]
[1722451832035,0.00847,66674.0,66673.0,1.97912692]
[1722451832246,0.00847,66674.0,66673.0,1.98512692]
[1722451832960,0.00847,66674.0,66673.0,1.96312692]
[1722451833108,0.00847,66674.0,66673.0,1.98312692]
[1722451833310,0.00847,66674.0,66673.0,1.94912692]
[1722451833610,0.00847,66674.0,66673.0,1.97712692]
[1722451833801,0.00847,66674.0,66673.0,1.96312692]
[1722451834224,0.00847,66674.0,66673.0,1.97712692]
[1722451834436,0.00847,66674.0,66673.0,1.98312692]
[1722451834711,0.00847,66674.0,66673.0,1.97712692]
[1722451834923,0.00847,66674.0,66673.0,1.96312692]
[1722451835132,0.00847,66674.0,66673.0,1.99712692]
[1722451835319,0.00847,66674.0,66673.0,1.99912692]
[1722451835723,0.00847,66674.0,66673.0,1.98512692]
[1722451835925,0.00847,66674.0,66673.0,1.99912692]
[1722451836139,0.00847,66674.0,66673.0,1.98512692]
[1722451836554,0.00847,66674.0,66673.0,1.96312692]
[1722451836887,0.00847,66674.0,66673.0,1.63915592]
[1722451837060,0.00847,66674.0,66673.0,1.65315592]
[1722451837293,0.00847,66674.0,66673.0,1.63915592]
[1722451837698,0.00847,66674.0,66673.0,1.65315592]
[1722451837902,0.00847,66674.0,66673.0,1.66715592]
[1722451838462,0.00847,66674.0,66673.0,1.65315592]
[1722451838689,0.00847,66674.0,66673.0,1.66715592]
[1722451839062,0.00847,66674.0,66673.0,1.65315592]
[1722451839263,0.00847,66674.0,66673.0,1.63915592]
[1722451839605,0.00847,66674.0,66673.0,1.66715592]
[1722451839938,0.00847,66674.0,66673.0,1.65315592]
[1722451840136,0.00847,66674.0,66673.0,1.66715592]
[1722451840362,0.00847,66674.0,66673.0,1.65315592]
[1722451840760,0.00847,66674.0,66673.0,1.66715592]
[1722451840883,0.00847,66674.0,66673.0,1.65315592]
[1722451841326,0.00847,66674.0,66673.0,1.66715592]
[1722451841731,0.00847,66674.0,66673.0,1.65315592]
[1722451842242,0.00847,66674.0,66673.0,1.66715592]
[1722451843489,0.00847,66674.0,66673.0,1.65315592]
[1722451843699,0.00847,66674.0,66673.0,1.66715592]
[1722451843869,0.08807,66674.0,66673.0,1.36718492]
[1722451844046,0.08807,66674.0,66673.0,1.35318492]
[1722451844250,0.08807,66674.0,66673.0,1.36718492]
[1722451844451,0.08807,66674.0,66673.0,1.35318492]
[1722451844650,0.00847,66674.0,66673.0,1.35318492]
[1722451844980,0.00847,66674.0,66673.0,1.36418492]
[1722451845195,0.00847,66674.0,66673.0,1.35318492]
[1722451845886,0.00847,66674.0,66673.0,1.36718492]
[1722451846263,0.00847,66674.0,66673.0,1.35318492]
[1722451846474,0.00847,66674.0,66673.0,1.36718492]
[1722451846952,0.00847,66674.0,66673.0,1.33918492]
[1722451847165,0.00847,66674.0,66673.0,1.35318492]
[1722451847349,0.00847,66674.0,66673.0,1.36718492]
[1722451847743,0.00847,66674.0,66673.0,1.35318492]
[1722451848173,0.00847,66674.0,66673.0,1.36718492]
[1722451854139,0.00847,66674.0,66673.0,1.05832306]
[1722451854344,0.15277,66674.0,66673.0,0.95832306]
[1722451855456,0.15277,66674.0,66673.0,1.25829406]
[1722451857358,0.15277,66674.0,66673.0,0.95832306]
[1722451858115,0.15277,66674.0,66673.0,1.25829406]
[1722451858477,0.00847,66674.0,66673.0,1.25829406]
[1722451858868,0.00847,66674.0,66673.0,1.55826506]
[1722451859641,0.00847,66674.0,66673.0,1.65826506]
[1722451862396,0.15057,66674.0,66673.0,1.35829406]
[1722451862605,0.15057,66674.0,66673.0,0.93532306]
[1722451862996,0.00847,66674.0,66673.0,1.23529406]
[1722451863801,0.00847,66674.0,66673.0,1.55826506]
[1722451864003,0.00847,66674.0,66673.0,1.25829406]
[1722451864209,0.00847,66674.0,66673.0,1.55826506]
[1722451865501,0.00847,66674.0,66673.0,1.25829406]
[1722451865702,0.00847,66674.0,66673.0,0.93532306]
[1722451866315,0.19671495,66674.0,66673.0,0.03584434]
[1722451866499,0.19671495,66674.0,66673.0,0.78577134]
[1722451866500,0.22074162,66674.0,66673.0,0.78577134]
[1722451866731,0.1533242,66674.0,66673.0,0.92747872]
[1722451866930,0.15177,66674.0,66673.0,1.23529238]
[1722451867138,0.15177,66674.0,66673.0,1.22129238]
[1722451867567,0.15177,66674.0,66673.0,1.25529238]
[1722451867769,0.15177,66674.0,66673.0,1.24129238]
[1722451867971,0.15177,66674.0,66673.0,1.25529238]
[1722451868610,0.15177,66674.0,66673.0,0.95532138]
[1722451869049,0.15177,66674.0,66673.0,0.65535038]
[1722451869262,0.15177,66674.0,66673.0,0.95532138]
[1722451869449,0.15177,66674.0,66673.0,1.25529238]
[1722451869978,0.00847,66674.0,66673.0,1.25529238]
[1722451871380,0.00847,66674.0,66673.0,1.55526338]
[1722451871991,0.075891,66682.0,66681.0,0.749837]
[1722451871992,0.07089702,66682.0,66681.0,0.749837]
[1722451872192,0.07089702,66682.0,66681.0,0.92238872]
[1722451872514,0.04842997,66682.0,66681.0,0.93021373]
[1722451872899,0.0034842,66682.0,66681.0,0.93021373]
[1722451873313,0.07089702,66682.0,66681.0,0.93221373]
[1722451873666,0.07089702,66682.0,66681.0,1.23214873]
[1722451873869,0.0034842,66682.0,66681.0,1.23214873]
[1722451874727,0.0034842,66682.0,66681.0,1.24314873]
[1722451874932,0.0034842,66682.0,66681.0,1.53208373]
[1722451875365,0.0034842,66682.0,66681.0,1.98121296]
[1722451875513,0.0034842,66682.0,66681.0,1.96721296]
[1722451875723,0.0034842,66682.0,66681.0,1.66727796]
[1722451875885,0.0034842,66682.0,66681.0,1.67927796]
[1722451876083,0.0034842,66682.0,66681.0,1.66527796]
[1722451876287,0.0034842,66682.0,66681.0,1.67527796]
[1722451876709,0.0034842,66682.0,66681.0,1.66527796]
[1722451876940,0.0034842,66682.0,66681.0,1.67827796]
[1722451877327,0.0034842,66682.0,66681.0,1.34314873]
[1722451877558,0.0034842,66682.0,66681.0,0.65727873]
[1722451877968,0.0034842,66682.0,66681.0,0.94321373]
[1722451878617,0.1429842,66682.0,66681.0,0.77066201]
[1722451878847,0.1429842,66682.0,66681.0,0.78466201]
[1722451879045,0.1429842,66682.0,66681.0,0.48472701]
[1722451879314,0.18790969,66682.0,66681.0,0.33476001]
[1722451879520,0.21037243,66682.0,66681.0,0.03482501]
[1722451879628,0.1429842,66682.0,66681.0,0.03482501]
[1722451879832,0.23283518,66682.0,66681.0,0.18479201]
[1722451880090,0.23283609,66682.0,66681.0,0.50772701]
[1722451880292,0.21037965,66682.0,66681.0,0.20779201]
[1722451880467,0.1429842,66682.0,66681.0,0.20779201]
[1722451880689,0.18788607,66682.0,66681.0,0.50772701]
[1722451880879,0.1429842,66682.0,66681.0,0.50772701]
[1722451881742,0.1429842,66682.0,66681.0,0.05782501]
[1722451881940,0.25529792,66682.0,66681.0,0.05782501]
[1722451882160,0.25529792,66682.0,66681.0,0.05]
[1722451882368,0.1429842,66682.0,66681.0,0.05781913]
[1722451882771,0.1429842,66682.0,66681.0,0.50772113]
[1722451882943,0.1429842,66682.0,66681.0,0.05]
[1722451883151,0.23280006,66682.0,66681.0,0.20778613]
[1722451883372,0.1429842,66682.0,66681.0,0.05781913]
[1722451883596,0.21035062,66682.0,66681.0,0.50772113]
[1722451883940,0.21035062,66682.0,66681.0,0.20778613]
[1722451884108,0.21035062,66682.0,66681.0,0.50772113]
[1722451884661,0.21035062,66682.0,66681.0,0.20778613]
[1722451884862,0.21035062,66682.0,66681.0,0.04981913]
[1722451885058,0.1429842,66682.0,66681.0,0.191967]
[1722451885281,0.38276506,66682.0,66681.0,0.042]
[1722451885500,0.1429842,66682.0,66681.0,0.04981913]
[1722451885736,0.25524724,66682.0,66681.0,0.04981913]
[1722451885904,0.1429842,66682.0,66681.0,0.191967]
[1722451886121,0.1429842,66682.0,66681.0,0.49972113]
[1722451886296,0.1429842,66682.0,66681.0,0.79965613]
[1722451886503,0.04838119,66682.0,66681.0,0.79965613]
[1722451886704,0.0034842,66682.0,66681.0,1.24914285]
[1722451886925,0.04837261,66682.0,66681.0,1.24914285]
[1722451887120,0.0034842,66682.0,66681.0,1.24914285]
[1722451887322,0.5884802,66682.0,66681.0,0.02681913]
[1722451887764,0.5884802,66682.0,66681.0,0.019]
[1722451887765,1.02311259,66682.0,66681.0,0.019]
[1722451888122,1.31428378,66682.0,66681.0,0.019]
[1722451888363,1.33988127,66682.0,66681.0,0.014]
[1722451888563,1.1883422,66682.0,66681.0,0.014]
[1722451888773,0.0601,66674.0,66669.0,0.000913]
[1722451888979,0.08966947,66671.0,66670.0,0.149991]
[1722451889184,0.210084,66674.0,66670.0,0.149991]
[1722451889185,0.04484172,66674.0,66673.0,0.149985]
[1722451889358,0.104941,66675.0,66674.0,0.149983]
[1722451889566,0.149983,66674.0,66673.0,0.00784753]
[1722451889742,0.0601,66675.0,66672.0,0.149987]
[1722451889966,0.003,66674.0,66673.0,0.0015542]
[1722451890177,0.003,66674.0,66673.0,0.149985]
[1722451890426,0.04782523,66674.0,66673.0,0.59950772]
[1722451890632,0.003,66674.0,66673.0,0.99877872]
[1722451890825,0.003,66674.0,66673.0,1.69872072]
[1722451891080,0.003,66674.0,66673.0,1.39874972]
[1722451891287,0.04830943,66682.0,66681.0,0.749837]
[1722451891501,0.0034842,66682.0,66681.0,0.92238872]
[1722451892327,0.07072204,66682.0,66681.0,0.472902]
[1722451892529,0.0034842,66682.0,66681.0,0.475902]
[1722451892735,0.6856221,66682.0,66681.0,0.003]
[1722451892959,0.299935,66681.0,66673.0,0.014913]
[1722451893096,0.1460842,66682.0,66673.0,0.014913]
[1722451893097,0.04483742,66675.0,66673.0,0.150898]
[1722451893294,0.149975,66678.0,66673.0,0.150898]
[1722451893508,0.149975,66678.0,66673.0,0.450869]
[1722451893509,0.06725114,66674.0,66673.0,0.450869]
[1722451893709,0.06725114,66675.0,66674.0,0.149983]
[1722451893908,0.06725114,66675.0,66673.0,0.150897]
[1722451893909,0.06724737,66675.0,66673.0,0.150897]
[1722451894134,0.27982841,66674.0,66673.0,0.000913]
[1722451894377,0.15226819,66674.0,66673.0,0.000913]
[1722451894579,0.0626,66674.0,66673.0,0.462869]
[1722451894755,0.12983715,66674.0,66673.0,0.77384]
[1722451895124,0.0626,66674.0,66673.0,0.036913]
[1722451895348,0.57979609,66674.0,66673.0,0.036913]
[1722451895527,0.38345119,66674.0,66673.0,0.036913]
[1722451895731,1.00577857,66674.0,66673.0,0.013913]
[1722451895933,0.893717,66674.0,66673.0,0.018913]
[1722451896146,1.203684,66674.0,66673.0,0.018913]
[1722451896390,1.37323572,66674.0,66673.0,0.018913]
[1722451896606,1.52439265,66674.0,66673.0,0.018913]
[1722451896807,1.52439265,66674.0,66673.0,0.013913]
[1722451896808,0.993717,66674.0,66673.0,0.013913]
[1722451897034,0.993717,66674.0,66673.0,0.000913]
[1722451898066,0.70668589,66674.0,66673.0,0.000913]
[1722451898267,0.1488,66674.0,66673.0,0.151898]
[1722451898472,0.1488,66674.0,66673.0,0.48568217]
[1722451898590,0.1438,66674.0,66673.0,0.03472617]
[1722451898991,0.3873181,66674.0,66673.0,0.001913]
[1722451899386,0.2333351,66674.0,66673.0,0.000913]
[1722451899723,0.2333351,66674.0,66673.0,0.01172617]
[1722451899724,0.293783,66674.0,66673.0,0.01172617]
[1722451899924,0.296783,66674.0,66673.0,0.01172617]
[1722451900125,1.196684,66674.0,66673.0,0.01172617]
[1722451900305,0.896717,66674.0,66673.0,0.01172617]
[1722451900511,1.196684,66674.0,66673.0,0.007913]
[1722451900728,1.196684,66674.0,66673.0,0.000913]
[1722451900982,0.896717,66674.0,66673.0,0.007913]
[1722451901132,0.893717,66674.0,66673.0,0.007913]
[1722451901335,0.70561849,66674.0,66673.0,0.007913]
[1722451901574,0.1468,66674.0,66673.0,0.007913]
[1722451901761,0.1468,66674.0,66673.0,0.480869]
[1722451901762,0.003,66674.0,66673.0,0.480869]
[1722451901957,0.07011375,66674.0,66673.0,0.030913]
[1722451902157,0.52006375,66674.0,66673.0,0.04172754]
[1722451902394,0.52006375,66674.0,66673.0,0.01872754]
[1722451902395,0.84239984,66674.0,66673.0,0.01872754]
[1722451902607,0.84239984,66674.0,66673.0,0.007913]
[1722451902788,0.752917,66674.0,66673.0,0.007913]
[1722451903025,1.195484,66674.0,66673.0,0.007913]
[1722451903227,1.47549748,66674.0,66673.0,0.007913]
[1722451903467,1.60975697,66674.0,66673.0,0.007913]
[1722451903615,1.79546448,66674.0,66673.0,0.007913]
[1722451903822,1.80546448,66674.0,66673.0,0.007913]
[1722451904023,1.50549748,66674.0,66673.0,0.007913]
[1722451904228,0.1456,66674.0,66673.0,0.000913]
[1722451904592,0.895517,66674.0,66673.0,0.000913]
[1722451904798,0.894517,66674.0,66673.0,0.000913]
[1722451904997,0.894517,66674.0,66673.0,0.001913]
[1722451904998,1.209484,66674.0,66673.0,0.001913]
[1722451905205,1.35903572,66674.0,66673.0,0.001913]
[1722451905396,1.36103572,66674.0,66673.0,0.001913]
[1722451905598,1.82348402,66674.0,66673.0,0.000913]
[1722451905715,1.48103572,66674.0,66673.0,0.001913]
[1722451906151,1.77400272,66674.0,66673.0,0.000913]
[1722451906514,1.77200272,66674.0,66673.0,0.000913]
[1722451906645,1.77900272,66674.0,66673.0,0.001913]
[1722451906845,1.62851702,66674.0,66673.0,0.001913]
[1722451907363,1.93048402,66674.0,66673.0,0.001913]
[1722451907587,1.92848402,66674.0,66673.0,0.001913]
[1722451907833,2.06254535,66674.0,66673.0,0.001913]
[1722451908029,1.76657835,66674.0,66673.0,0.001913]
[1722451908410,2.06654535,66674.0,66673.0,0.001913]
[1722451908621,1.76657835,66674.0,66673.0,0.001913]
[1722451909033,2.06654535,66674.0,66673.0,0.001913]
[1722451909194,1.93248402,66674.0,66673.0,0.001913]
[1722451909581,1.63251702,66674.0,66673.0,0.001913]
[1722451910022,1.93248402,66674.0,66673.0,0.001913]
[1722451913882,1.89248402,66674.0,66673.0,0.001913]
[1722451916097,1.72300272,66674.0,66673.0,0.001913]
[1722451916307,0.25023557,66674.0,66673.0,0.001913]
[1722451916467,0.46095,66674.0,66673.0,0.01274376]
[1722451916688,0.760917,66674.0,66673.0,0.001913]
[1722451916892,0.80554419,66674.0,66673.0,0.001913]
[1722451917447,1.10551119,66674.0,66673.0,0.001913]
[1722451917602,0.80554419,66674.0,66673.0,0.001913]
[1722451917809,0.760917,66674.0,66673.0,0.001913]
[1722451918989,0.160983,66674.0,66673.0,0.001913]
[1722451919192,0.011,66674.0,66673.0,0.151898]
[1722451919453,0.011,66674.0,66673.0,0.174898]
[1722451919666,0.011,66674.0,66673.0,0.48569976]
[1722451919867,0.011,66674.0,66673.0,0.03574376]
[1722451920064,0.007,66674.0,66673.0,0.03574376]
[1722451920590,0.54995,66674.0,66673.0,0.01874376]
[1722451920732,0.55195,66674.0,66673.0,0.01874376]
[1722451920929,0.851917,66674.0,66673.0,0.01174376]
[1722451921130,0.851917,66674.0,66673.0,0.01574376]
[1722451921334,0.849917,66674.0,66673.0,0.004913]
[1722451921531,0.755917,66674.0,66673.0,0.004913]
[1722451921757,1.055884,66674.0,66673.0,0.004913]
[1722451921965,1.25497818,66674.0,66673.0,0.004913]
[1722451922167,1.28128743,66674.0,66673.0,0.004913]
[1722451922368,1.055884,66674.0,66673.0,0.005913]
[1722451922705,1.055884,66674.0,66673.0,0.001913]
[1722451922706,1.15521155,66674.0,66673.0,0.001913]
[1722451922909,1.055884,66674.0,66673.0,0.004913]
[1722451923037,1.055884,66674.0,66673.0,0.001913]
[1722451923248,0.006,66674.0,66673.0,0.001913]
[1722451923473,0.009,66674.0,66673.0,0.064313]
[1722451923675,0.34461351,66680.0,66674.0,0.149983]
[1722451923874,0.04467151,66681.0,66674.0,0.0015542]
[1722451924102,0.19812995,66682.0,66676.0,0.299955]
[1722451924309,0.14997,66680.0,66677.0,0.023]
[1722451924505,0.149971,66680.0,66677.0,0.023]
[1722451924824,1.09448375,66679.0,66678.0,0.01080041]
[1722451925047,0.81689152,66679.0,66678.0,0.01080041]